Cogmind - Beta 12 @@@ ROGUE MODE // 2023.03.25 @ 14:16:04 Player: Azken Zutik Result: Destroyed by D-63 Destroyer with Heavy Rocket Launcher Performance ------------- Evolutions (5) 2500 Regions Visited (23) 4600 Robots Destroyed (969) 4845 Value Destroyed (38457) 38457 Prototype IDs (53) 1060 Alien Tech Used (0) 0 Bonus (29841) 29841 TOTAL SCORE: 81303 Bonus ------- Triggered High Security 2000 High Alert Combat Kills 20978 Follower Combat Kills 3393 Entered Garrisons 1000 Used RIF Installer 2500 Aligned with FarCom 300 Met Data Miner 300 Friendly Fire -630 Cogmind --------- Core Integrity 0/1000 Matter 287/300 Energy 100/100 System Corruption 64% Temperature Cool (36) Movement Core (50) Location -5/Factory Parts ------- > --- POWER (1) -------- (None) > --- PROPULSION (6) --- (None) > --- UTILITY (6) ------ (None) > --- WEAPON (4) ------- (None) > --- INVENTORY (5) ---- Heavy Treads Large Matter Pod (150) Improved Heavy Armor Plating Peak State ------------ > --- POWER ------------ Heavy Antimatter Reactor > --- PROPULSION ------- Armored Treads Armored Treads Improved Medium Treads Heavy Treads > --- UTILITY ---------- Improved Cooling System Huge Storage Unit Experimental Power Shielding Stealth Drone Bay > --- WEAPON ----------- Heavy Machine Gun Heavy Machine Gun Heavy Machine Gun Heavy Machine Gun > --- INVENTORY -------- Reinforced Deuterium Engine Armored Treads Heavy Treads Advanced Heat Sink High-capacity Storage Unit High-capacity Matter Pod Matter Compressor Transport Network Coupler Kinecellerator Improved Light Armor Plating Improved Light Armor Plating Improved Light Armor Plating Improved Thermal Defense Suite Long-range Tractor Beam Gauss Rifle Precision Assault Rifle Heavy Machine Gun Heavy Machine Gun Rocket Array Precision Rocket Launcher Precision Rocket Launcher Precision Rocket Launcher Remote Datajack Heavy Flail [Rating: 88] Favorites ----------- Power Heavy Antimatter Reactor Engine Ion Engine Power Core Enhanced Nuclear Core Reactor Heavy Antimatter Reactor Propulsion Armored Treads Treads Armored Treads Leg Carbon-fiber Leg Wheel Wheel Hover Unit Gravmag System Flight Unit Field Propulsion Drive Utility Lightpack 2.0 Device Experimental Heat Sink Storage Lightpack 2.0 Processor Advanced Targeting Computer Hackware Relay Coupler [Sentry] Protection Improved Light Armor Plating Weapon Heavy Assault Rifle Energy Gun Small Laser Ballistic Gun Heavy Assault Rifle Ballistic Cannon Gauss Cannon Launcher Rocket Array Special Weapon Mining Laser Impact Weapon Shock Maul Build | -11 -10 -10 -10 -9 -8 -8 -8 -8 -7 -7 -7 -7 -7 -7 -6 -6 -6 -6 -6 -6 -5 -5 -5 ------- Run | Jun Mat Min Exi Min Mat Gar Mat Gar Fac Gar Fac Low Low Dat Pro Fac Was Fac Gar Fac Fac Gar Fac Slots Evolved 10 | . . . . . 4 . . . 2 . . . . . . 2 . . . . 2 . . Power . | . . . . . . . . . . . . . . . . . . . . . . . . Propulsion 4 | . . . . . . . . . 1 . . . . . . 2 . . . . 1 . . Utility 4 | . . . . . 2 . . . 1 . . . . . . . . . . . 1 . . Weapon 2 | . . . . . 2 . . . . . . . . . . . . . . . . . . Parts Attached 1092 | 3 34 3 . 4 63 23 83 40 41 6 129 17 11 4 13 120 11 88 39 148 54 51 107 Power 21 | . 1 1 . . 1 1 . 2 1 . 1 . 1 . . 2 . . . 2 2 4 2 Engine 9 | . 1 1 . . 1 . . 1 . . . . . . . . . . . 1 . 2 2 Core 7 | . . . . . . 1 . 1 . . 1 . . . . . . . . 1 1 2 . Reactor 5 | . . . . . . . . . 1 . . . 1 . . 2 . . . . 1 . . Propulsion 104 | 2 4 . . . 4 1 4 . 4 . 10 2 . . . 13 3 15 . 17 11 9 5 Treads 89 | 2 4 . . . 4 1 4 . 4 . 10 2 . . . 13 3 15 . 15 2 5 5 Leg 11 | . . . . . . . . . . . . . . . . . . . . . 7 4 . Wheel 2 | . . . . . . . . . . . . . . . . . . . . 2 . . . Hover 1 | . . . . . . . . . . . . . . . . . . . . . 1 . . Flight 1 | . . . . . . . . . . . . . . . . . . . . . 1 . . Utility 439 | . 7 . . 2 23 7 38 24 22 3 51 4 6 . . 35 5 45 19 48 31 24 45 Device 272 | . 6 . . 2 22 5 32 14 14 1 22 3 1 . . 21 3 30 12 29 18 9 28 Storage 11 | . 1 . . . 1 . . . . . 1 . 2 . . . . 1 . . 2 1 2 Processor 11 | . . . . . . . . . 1 . 2 . 1 . . . . 1 . 1 3 . 2 Hackware 51 | . . . . . . 1 5 8 7 1 5 . . . . 1 1 1 6 2 1 8 4 Protection 94 | . . . . . . 1 1 2 . 1 21 1 2 . . 13 1 12 1 16 7 6 9 Artifact . | . . . . . . . . . . . . . . . . . . . . . . . . Weapon 528 | 1 22 2 . 2 35 14 41 14 14 3 67 11 4 4 13 70 3 28 20 81 10 14 55 Energy Gun 2 | . 1 . . . 1 . . . . . . . . . . . . . . . . . . Energy Cannon . | . . . . . . . . . . . . . . . . . . . . . . . . Ballistic Gun 263 | 1 8 1 . 1 20 8 23 10 7 1 29 7 1 4 6 31 2 17 9 30 7 11 29 Ballistic Cannon 6 | . . . . . . . . . . . 6 . . . . . . . . . . . . Launcher 125 | . 9 . . 1 12 2 14 2 1 1 7 3 . . 5 20 . 4 6 28 . . 10 Special Weapon 49 | . 1 . . . . . 3 2 6 1 8 1 2 . 1 5 1 1 5 1 1 2 8 Impact Weapon 83 | . 3 1 . . 2 4 1 . . . 17 . 1 . 1 14 . 6 . 22 2 1 8 Slashing Weapon . | . . . . . . . . . . . . . . . . . . . . . . . . Piercing Weapon . | . . . . . . . . . . . . . . . . . . . . . . . . Special Melee Weapon . | . . . . . . . . . . . . . . . . . . . . . . . . Unidentified Prototypes 21 | . . . . . 3 . . . 7 . 2 . . . . 3 1 2 . . . . 3 Corrupted Parts 7 | . . . . . . . . . . . . . . . . 1 . . . . 3 3 . System Corruption 44 | . . . . . . . . . . . . . . . . 5 . . . . 18 21 . Parts Lost 61 | . 1 . . . . 1 2 1 . . . 2 . . . 4 . . 1 13 4 20 12 Power 2 | . . . . . . . . . . . . . . . . . . . . . 1 1 . Propulsion 23 | . . . . . . . 1 . . . . . . . . 3 . . . 8 2 6 3 Utility 14 | . . . . . . 1 . . . . . 1 . . . 1 . . . 2 1 4 4 Weapon 22 | . 1 . . . . . 1 1 . . . 1 . . . . . . 1 3 . 9 5 Highest Loss Streak 11 | . 1 . . . . 1 1 1 . . . 2 . . . 1 . . 1 9 4 8 11 To Critical Strikes 6 | . . . . . . . . 1 . . . . . . . . . . . 2 . 2 1 Average Slot Usage (%) 90 | . 99 100 100 100 80 80 80 80 83 76 83 83 99 92 100 99 82 90 93 92 77 84 92 Engine 3 | . 14 14 14 14 9 8 . 6 6 . . . . . . . . . . . . 3 4 Core 1 | . . . . . . . 9 2 . . 5 7 . . . . . . . . 3 1 . Reactor 2 | . . . . . . . . . . 7 1 . 6 7 7 5 6 6 6 5 . . . Treads 24 | . 27 28 28 28 18 18 17 18 23 23 22 23 23 23 23 32 26 25 26 26 6 17 34 Device 10 | . 13 14 14 14 9 7 8 6 6 13 4 6 14 15 15 10 4 16 18 8 4 8 9 Storage 7 | . 14 14 14 14 9 9 9 9 7 7 7 7 6 7 7 6 6 6 6 5 2 5 4 Processor 1 | . . . . . . . . . . . 2 . 6 7 7 6 3 1 . . 1 5 2 Protection 5 | . . . . . . . . 1 . . 5 7 7 7 7 8 4 6 6 16 10 7 7 Ballistic Gun 22 | . 14 20 14 25 33 31 33 30 24 16 18 29 29 1 28 22 22 24 23 20 16 19 14 Launcher 1 | . 3 . . 1 1 1 1 1 . 6 1 . . . . . . . 1 2 . . 1 Special Weapon 1 | . 8 . . . . . . 3 4 . . . . 14 . . 3 . 1 . . 1 1 Impact Weapon 1 | . 1 8 14 2 . 3 . . . . 1 . . 6 . 1 . . . 2 2 . 1 Naked Turns 29 | . . . . . . . . . . . . . . . . . . . . 9 12 . 8 Heaviest Build 138 | 12 39 32 32 32 32 31 30 45 41 39 56 46 86 83 88 87 120 134 138 134 84 74 93 Greatest Support 176 | 40 40 40 40 40 40 40 42 42 70 70 70 70 68 68 68 116 160 160 140 140 75 147 176 Greatest Overweight (x) 5 | . 1 . . . . . . 1 . . . . 1 1 1 . . 1 . 5 1 1 . Average Overweight (x) . | . . . . . . . . . . . . . . 1 1 . . . . . . . . Largest Inventory Capacity 40 | 8 15 15 15 15 40 40 40 40 40 40 40 40 40 20 20 20 20 25 25 25 15 20 20 Average Capacity 26 | 8 10 15 15 15 39 40 40 40 40 40 40 40 19 20 20 20 20 24 25 24 10 15 19 Most Carried 40 | 8 15 15 15 15 40 40 40 40 40 40 40 40 37 20 20 20 20 25 25 25 15 20 20 Average Carried 24 | 5 10 14 14 15 27 39 36 37 37 39 37 38 19 19 19 19 19 24 24 24 7 14 19 Final Capacity 40 | 8 15 15 15 15 40 40 40 40 40 40 40 40 20 20 20 20 20 25 25 25 15 20 20 Final Carried 40 | 8 15 15 15 15 40 40 40 39 39 40 40 38 20 20 20 20 20 25 25 25 15 20 20 Class Distribution -------------------- 29% | Mutant 11% | Scavenger-Mutant 10% | Scavenger-Tank 10% | Hauler-Mutant 9% | Hauler-Skirmisher 5% | Tank 5% | Hauler-Tank 4% | Gunner 3% | Bothacker-Mutant Dominant Class ---------------- Mutant | -10/Materials Mutant | -10/Mines Mutant | -10/Exiles Mutant | -9/Mines Hauler-Skirmisher | -8/Materials Hauler-Mutant | -8/Garrison Hauler-Skirmisher | -8/Materials Bothacker-Mutant | -8/Garrison Bothacker-Mutant | -7/Factory Botlord-Mutant | -7/Garrison Hauler-Mutant | -7/Factory Hauler-Tank | -7/Lower Caves Gunner | -7/Lower Caves Mutant | -7/Data Miner Mutant | -6/Proximity Caves Scavenger-Mutant | -6/Factory Scavenger-Gunner | -6/Waste Scavenger-Tank | -6/Factory Scavenger-Mutant | -6/Garrison Mutant | -6/Factory Scavenger-Tank | -5/Factory Scavenger-Mutant | -5/Garrison Scavenger-Mutant | -5/Factory Resources | -11 -10 -10 -10 -9 -8 -8 -8 -8 -7 -7 -7 -7 -7 -7 -6 -6 -6 -6 -6 -6 -5 -5 -5 ----------- Run | Jun Mat Min Exi Min Mat Gar Mat Gar Fac Gar Fac Low Low Dat Pro Fac Was Fac Gar Fac Fac Gar Fac Matter Collected 40163 | 343 1150 95 177 . 2760 1421 2766 1574 979 986 4660 672 451 . 808 3621 568 2806 1384 5925 1594 1662 3761 Remotely 17379 | . . . . . 1253 213 1796 600 468 831 2197 . . . . 1536 . 839 699 2868 560 851 2668 Salvage Created 37339 | 198 1536 58 . 30 3182 1125 2937 483 823 238 6131 538 237 . 572 3474 540 2417 443 5947 1650 1191 3589 Parts 1606 | 14 91 4 . 1 145 69 156 33 39 8 273 34 7 . 42 146 7 95 12 188 60 44 138 Haulers Intercepted 39 | . 2 . . . 6 . 4 . 3 . 8 . . . . 6 . 4 . 2 1 . 3 Recyclers Shooed 39 | 1 4 . . . 6 . 5 . 1 . 4 . . . . 4 . 1 . 9 1 . 3 Parts Field Recycled 46 | . 9 . . . . . . . . . . . . . . . . . . . 37 . . Retrieved Matter 812 | . 50 . . . . . . . . . . . . . . . . . . . 762 . . Parts Self-Destructed 59 | . . . . . . . . . . . . 33 8 . 18 . . . . . . . . Prevented 2 | . . . . . . . . . . . . . 2 . . . . . . . . . . Kills | -11 -10 -10 -10 -9 -8 -8 -8 -8 -7 -7 -7 -7 -7 -7 -6 -6 -6 -6 -6 -6 -5 -5 -5 ------- Run | Jun Mat Min Exi Min Mat Gar Mat Gar Fac Gar Fac Low Low Dat Pro Fac Was Fac Gar Fac Fac Gar Fac Combat Hostiles Destroyed 740 | . 40 2 . . 51 28 46 15 7 35 126 18 2 . 17 59 2 37 14 135 17 23 66 Melee 4 | . . . . . . . . . . . . . . . . . . . . . 4 . . Guns 271 | . 3 . . . 25 26 18 7 4 3 35 12 2 . 3 20 2 33 5 20 11 23 19 Cannons 4 | . . . . . . . . . . . 4 . . . . . . . . . . . . AOE 459 | . 37 2 . . 26 2 28 8 3 32 87 6 . . 14 39 . 4 9 115 . . 47 Classes Destroyed 23 | 3 7 . . . 4 2 1 1 . 1 1 . 1 . . 1 1 . . . . . . Worker 110 | 1 7 . . 1 9 . 19 . 5 . 15 . . . . 13 . 3 . 25 2 . 10 Builder 49 | . 3 . . . 6 . 12 . 1 . 5 . . . . 9 . . . 5 3 . 5 Tunneler 12 | 5 2 . . . . . . . . . 3 . . . . . . . . 1 . . 1 Hauler 39 | . 2 . . . 6 . 4 . 3 . 8 . . . . 6 . 4 . 2 1 . 3 Recycler 87 | 1 7 . . . 14 . 11 . 4 . 17 . . . . 7 . 3 . 14 3 . 6 Carrier 1 | . . . . . . . . . . . 1 . . . . . . . . . . . . Mechanic 28 | . 3 . . . 3 . 1 . . . 7 . . . . . . . . 10 . . 4 Operator 3 | . 1 . . . . . . . . . . . . . . 1 . 1 . . . . . Watcher 10 | . 2 . . . 2 . 1 1 . . 2 . . . . 1 . . . . 1 . . Swarmer 91 | . 9 . . . . 6 3 8 . . 6 12 . . 5 14 . 9 . . . 14 5 Saboteur 9 | . . . . . . . . . . . . . . . . 2 . . . 6 . . 1 Grunt 353 | . 31 2 . . 36 10 30 2 4 3 71 5 2 . 9 22 . 17 9 53 8 7 32 Brawler 35 | . . . . . 3 . 3 . . . 7 . . . . 2 . . 1 13 . 1 5 Duelist 47 | . . . . . 4 . 3 1 1 1 13 . . . . 2 . 3 . 14 3 . 2 Protector 27 | . . . . . . . 2 . 1 . 12 . . . . . . . . 10 . . 2 Sentry 38 | . . . . . 7 4 4 4 . 1 3 1 . . 2 6 . 2 2 . 1 . 1 Specialist 2 | . . . . . . 1 . . . . . . . . . . . . . . . . 1 Hunter 39 | . . . . . 1 1 1 . . 1 3 . . . . 8 . 1 . 18 1 . 4 Programmer 66 | . . . . . . 6 . . 1 . 11 . . . . 3 . 5 1 21 4 1 13 Behemoth 3 | . . . . . . . . 1 . . . . . . 1 . . . 1 . . . . Compactor 2 | . . . . . . . . . . . . . . . . . 2 . . . . . . Packrat 1 | . . . . . . . . . . . . . 1 . . . . . . . . . . Samaritan 5 | . . . . . . . . . . . . . 2 . 3 . . . . . . . . Assembled 29 | . . . . . . . . . . 29 . . . . . . . . . . . . . Butcher 1 | . . . . . . . . . . 1 . . . . . . . . . . . . . Best Kill Streak 26 | 3 18 2 . 1 13 5 7 4 4 14 20 6 1 . 6 12 1 5 6 26 3 8 11 Combat Bots Only 23 | . 15 2 . . 7 5 5 4 3 14 19 6 1 . 6 9 1 5 6 23 3 8 10 Max Kills in Single Turn 9 | 1 7 2 . 1 5 2 4 2 2 4 8 3 1 . 2 5 1 3 2 9 2 2 4 Gunslinging 1 | . . . . . 1 1 1 1 . . 1 1 . . . 1 . 1 . . . . . Exploded 9 | . 6 2 . . 3 2 3 2 2 4 5 3 . . 2 3 . 3 2 9 . . 3 Melee 1 | . . . . . . . . . . . . . . . . . . . . . 1 . . Uniques/NPCs Destroyed . | . . . . . . . . . . . . . . . . . . . . . . . . Combat | -11 -10 -10 -10 -9 -8 -8 -8 -8 -7 -7 -7 -7 -7 -7 -6 -6 -6 -6 -6 -6 -5 -5 -5 -------- Run | Jun Mat Min Exi Min Mat Gar Mat Gar Fac Gar Fac Low Low Dat Pro Fac Was Fac Gar Fac Fac Gar Fac Damage Taken 25957 | . 603 30 . . 871 908 698 731 254 262 1821 892 164 . 607 2421 . 2450 774 3281 1948 2316 4926 Core 2707 | . 160 . . . 161 76 67 20 14 37 195 46 . . 26 277 . 250 35 287 226 131 699 Absorbed by Shields 1377 | . . . . . 256 201 184 56 20 148 196 157 . . . 159 . . . . . . . Redirected to Shielding 265 | . . . . . . . . . . . . . . . . . . . . 23 123 61 58 Regen/Repaired (Parts) 4274 | . . . . . 94 . 318 . 359 . 567 . . . . 1145 . 1158 . . . . 633 Core Remaining (%) 46 | 100 . . . 36 . . . 41 . . . . . . 54 . . . . . . . . Volleys Fired 1732 | 24 106 1 . 7 137 71 140 103 61 59 186 32 11 . 48 127 25 96 55 140 47 108 148 Largest 4 | 2 2 1 . 2 4 4 4 4 4 4 4 4 4 . 4 4 4 4 4 4 4 4 4 Hottest 144 | 80 100 30 . 46 96 99 96 116 104 104 144 112 117 . 122 122 117 120 120 129 126 131 129 Shots Fired 4032 | 48 138 1 . 12 436 210 360 188 114 70 492 91 45 . 75 321 62 341 98 284 159 232 255 Gun 3181 | 48 61 . . 10 388 200 276 146 76 29 378 79 45 . 36 266 55 333 54 162 157 203 179 Cannon 48 | . . . . . . . . . . . 48 . . . . . . . . . . . . Launcher 551 | . 74 1 . 2 48 10 60 8 3 34 38 3 . . 16 43 . 5 31 120 . . 55 Special 252 | . 3 . . . . . 24 34 35 7 28 9 . . 23 12 7 3 13 2 2 29 21 Kinetic 3190 | 22 48 . . 10 388 200 276 146 76 29 426 79 45 . 36 266 55 333 54 162 157 203 179 Thermal 65 | 26 16 . . . . . . . . . . . . . 23 . . . . . . . . Explosive 541 | . 74 1 . 2 48 . 60 8 3 34 38 3 . . 16 43 . 5 31 120 . . 55 Electromagnetic 10 | . . . . . . 10 . . . . . . . . . . . . . . . . . Robot Hit Streak 39 | 6 13 2 . 5 14 7 12 11 15 15 18 10 7 . 26 28 25 23 35 16 10 34 39 Robot Miss Streak 9 | 2 2 . . 1 7 4 5 4 4 2 7 3 3 . 3 3 1 4 2 5 9 5 6 Penetration Max 2 | . . . . . . . . . . . 1 . . . . 1 . . . . 2 1 1 Secondary Targets 46 | . . . . . 2 2 3 2 1 1 8 3 . . . 3 . 7 1 . 2 9 2 Max Gunslinging Chain 2 | . . . . . 1 1 1 1 1 1 1 2 . . . 1 . 2 1 . 1 1 1 Shots Hit Robots 2572 | 29 73 1 . 6 237 111 199 110 76 21 316 62 26 . 62 224 57 228 50 247 108 151 178 Core Hits 2438 | 10 101 2 . 1 173 55 154 28 32 54 533 30 14 . 72 231 9 93 43 499 50 53 201 Critical Kills 26 | 2 . . . . . . . . . . 2 1 1 . . 3 . . . 2 2 5 8 Critical Parts Destroyed 75 | . 3 . . . 1 . 1 . 1 1 9 . 1 . . 2 1 2 . 17 17 8 11 Critical Strikes 108 | 2 3 . . . 2 . 1 . 1 1 14 1 2 . 1 5 1 2 . 19 19 13 21 Destroy 56 | 2 2 . . . 2 . 1 . 1 1 3 1 1 . . 4 1 2 . . 14 11 10 Blast 3 | . . . . . . . . . . . 3 . . . . . . . . . . . . Smash 48 | . 1 . . . . . . . . . 8 . 1 . . 1 . . . 19 5 2 11 Sever 1 | . . . . . . . . . . . . . . . 1 . . . . . . . . Melee Attacks 304 | . 24 6 . . 8 16 1 . . . 80 . 1 . 2 36 . 9 . 44 25 3 49 Impact 304 | . 24 6 . . 8 16 1 . . . 80 . 1 . 2 36 . 9 . 44 25 3 49 Slashing . | . . . . . . . . . . . . . . . . . . . . . . . . Piercing . | . . . . . . . . . . . . . . . . . . . . . . . . Sneak Attacks 92 | . 12 . . . 1 . . . . . 16 . 1 . . 7 . 1 . 36 . . 18 Combat Hostiles . | . . . . . . . . . . . . . . . . . . . . . . . . Follow-up Attacks . | . . . . . . . . . . . . . . . . . . . . . . . . Damage Inflicted 121550 | 319 4877 105 . 107 8015 2250 6647 2352 1480 3150 18876 1330 671 . 2870 11442 1024 6283 2974 27609 3043 2421 13705 Guns 39000 | 319 497 . . 107 3172 1847 2621 1834 957 211 4815 1000 581 . 706 4075 1024 5599 687 2240 2170 2178 2360 Cannons 618 | . . . . . . . . . . . 618 . . . . . . . . . . . . Explosions 71276 | . 3541 105 . . 4778 403 4012 518 523 2939 12358 330 . . 1963 6554 . 469 2287 21174 20 . 9302 Melee 10126 | . 832 . . . 54 . . . . . 1041 . 90 . . 775 . 117 . 4107 835 243 2032 Ramming 329 | . 7 . . . 11 . 14 . . . 44 . . . . 38 . 98 . 88 18 . 11 Kinetic 39284 | 106 376 . . 107 3172 1847 2621 1834 957 211 5433 1000 581 . 706 4075 1024 5599 687 2240 2170 2178 2360 Thermal 937 | 213 121 . . . . 79 . . . . . . . . 201 323 . . . . . . . Explosive 70441 | . 3541 105 . . 4778 118 4012 518 523 2939 12358 330 . . 1963 6004 . 469 2287 21174 20 . 9302 Electromagnetic 433 | . . . . . . 206 . . . . . . . . . 227 . . . . . . . Impact 10126 | . 832 . . . 54 . . . . . 1041 . 90 . . 775 . 117 . 4107 835 243 2032 Slashing . | . . . . . . . . . . . . . . . . . . . . . . . . Piercing . | . . . . . . . . . . . . . . . . . . . . . . . . Highest Corruption 64 | . . . . . 4 8 8 8 . . 4 3 3 3 3 7 27 28 29 39 24 55 64 Average Corruption 17 | . . . . . 3 4 8 8 . . 2 3 3 3 3 5 16 27 28 31 18 43 59 Corruption Purged 5 | . . . . . . . . . . . 5 . . . . . . . . . . . . Corruption Blocked . | . . . . . . . . . . . . . . . . . . . . . . . . Effects 1585 | . . . . . 45 37 128 48 . . 96 36 24 5 59 83 19 139 73 405 55 106 227 Message Errors 345 | . . . . . 11 5 28 13 . . 11 13 4 2 8 24 8 30 18 88 14 21 47 Matter Fused 372 | . . . . . 14 9 27 10 . . 35 6 5 1 20 18 3 26 17 89 13 19 60 Heat Flow Errors 186 | . . . . . 6 6 21 6 . . 10 5 4 1 9 7 1 11 6 53 8 16 16 Energy Discharges 189 | . . . . . 2 6 20 4 . . 17 4 3 . 6 11 3 16 9 56 4 9 19 Parts Rejected 15 | . . . . . . . . 1 . . 1 . . . . 2 1 2 . 4 1 . 3 Parts Fused 15 | . . . . . 1 . 1 . . . 1 . 1 1 1 . . 2 1 2 1 1 2 Data Loss (minor) 169 | . . . . . 4 6 17 4 . . 7 3 3 . 6 8 1 14 10 51 7 6 22 Data Loss (major) 71 | . . . . . 2 1 9 1 . . 7 . 2 . 2 4 1 6 6 17 . 7 6 Misfires 63 | . . . . . 4 1 2 2 . . 6 3 2 . 4 4 . 5 1 11 1 7 10 Alerts 30 | . . . . . . 1 . 1 . . 1 1 . . 3 3 . 5 1 8 1 1 4 Misdirections 10 | . . . . . . . . . . . . . . . . . . 1 1 2 1 1 4 Weapon Failures 120 | . . . . . 1 2 3 6 . . . 1 . . . 2 1 21 3 24 4 18 34 Overload Shots . | . . . . . . . . . . . . . . . . . . . . . . . . Overflow Damage 7712 | . 528 . . . 119 5 72 53 . 129 627 . . . 75 785 . 118 12 3335 353 143 1358 Projectiles 71 | . . . . . . . . . . . . . . . 27 44 . . . . . . . Explosions 1310 | . 70 . . . 90 5 72 53 . 129 31 . . . 48 218 . . 12 433 . . 149 Melee 6331 | . 458 . . . 29 . . . . . 596 . . . . 523 . 118 . 2902 353 143 1209 Knockbacks 50 | . 7 . . . . . . . . . 7 . . . . 6 . 1 . 17 4 4 4 Impact 43 | . 7 . . . . . . . . . 4 . . . . 5 . 1 . 16 3 3 4 Kinetic 3 | . . . . . . . . . . . 3 . . . . . . . . . . . . Secondary 4 | . . . . . . . . . . . . . . . . 1 . . . 1 1 1 . Self-Inflicted Damage 567 | . 91 17 . . . 51 82 30 . . 97 26 . . . 22 . 60 . 86 . . 5 Shots 24 | . 4 1 . . . 5 3 1 . . 4 1 . . . 1 . 2 . 2 . . . Rammed 31 | . 3 . . . 2 . 4 . 1 . 4 . . . . 2 . 6 . 7 1 . 1 Targets Rammed 36 | . 3 . . . 3 . 4 . 1 . 4 . . . . 2 . 7 . 8 3 . 1 Kicked 1 | . . . . . . . . . . . . . . . . . . . . . 1 . . Crushed 4 | . . . . . 1 . . . . . . . . . . . . 1 . 1 1 . . Highest Temperature 518 | 60 128 . . . 317 285 272 329 97 142 324 286 247 163 240 204 143 254 199 244 518 225 248 Average Temperature 77 | 25 43 . . . 55 80 72 121 30 26 73 93 52 89 75 52 47 101 69 89 135 73 74 Received Heat Transfer 5432 | . 195 9 . . 473 151 215 130 92 65 482 199 48 . 150 508 . 520 285 562 342 252 754 Effects 21 | . . . . . 3 1 1 3 . . 2 . . . . . . 2 . . 9 . . Shutdowns 3 | . . . . . . . . . . . . . . . . . . . . . 3 . . Energy Bleed 5 | . . . . . 1 1 . 1 . . 1 . . . . . . . . . 1 . . Interference 11 | . . . . . 2 . 1 . . . 1 . . . . . . 2 . . 5 . . Matter Decay 1 | . . . . . . . . 1 . . . . . . . . . . . . . . . Damage (minor) 1 | . . . . . . . . 1 . . . . . . . . . . . . . . . Siege Activations . | . . . . . . . . . . . . . . . . . . . . . . . . Robots Corrupted 1 | . . . . . . . . . . . . . . . . 1 . . . . . . . Combat Hostiles . | . . . . . . . . . . . . . . . . . . . . . . . . Parts Fried 74 | . 5 . . . 1 1 . . . . 17 . . . . 4 . 2 . 26 . 2 16 Impact Corruptions 165 | . 18 . . . 1 . . . . . 22 . . . . 15 . 5 . 74 7 4 19 Robots Melted . | . . . . . . . . . . . . . . . . . . . . . . . . Combat Hostiles . | . . . . . . . . . . . . . . . . . . . . . . . . Parts Melted 6 | . . . . . . . . 2 . . 1 . . . 1 . . . . . . 1 1 Heat Transferred 1816 | 475 275 . . . . 100 . . . . . . . . 666 300 . . . . . . . Parts Sabotaged 5 | . . . . . . . . . . . . . . . . . . . . 4 . . 1 Parts Stolen 1 | . . . . . . . . . . . . . 1 . . . . . . . . . . Parts Stripped . | . . . . . . . . . . . . . . . . . . . . . . . . Power Chain Reactions 1 | . . . . . . 1 . . . . . . . . . . . . . . . . . Missiles Intercepted . | . . . . . . . . . . . . . . . . . . . . . . . . Alert | -11 -10 -10 -10 -9 -8 -8 -8 -8 -7 -7 -7 -7 -7 -7 -6 -6 -6 -6 -6 -6 -5 -5 -5 ------- Run | Jun Mat Min Exi Min Mat Gar Mat Gar Fac Gar Fac Low Low Dat Pro Fac Was Fac Gar Fac Fac Gar Fac Peak Influence 3076 | 35 2056 1165 . 84 1284 1995 1530 1858 1306 1698 2773 . . . . 1341 470 687 1467 3076 1596 1807 2104 Initial 1507 | . 22 1100 . . 32 834 972 994 975 914 891 . . . . 21 469 315 480 770 1507 1117 948 Average 924 | 19 381 1164 . 62 311 1343 1000 1478 1024 1368 1049 . . . . 637 461 429 987 1317 1487 1441 1152 Maximum Alert Level 5 | . 5 4 . . 4 5 4 5 4 5 5 . . . . 4 2 2 4 5 4 5 5 Low Security (%) 16 | 100 64 . . 100 64 . . . . . . . . . . 17 . 1 . . . . . Level 1 5 | . 4 . . . 2 . . . . . . . . . . 25 . 49 . . . . . Level 2 8 | . 4 . . . 13 . 2 . . . 17 . . . . 5 100 49 17 . . . . Level 3 32 | . 6 . . . 13 28 71 12 83 12 50 . . . . 40 . . 53 37 . . 56 Level 4 30 | . 16 100 . . 4 51 25 53 16 64 22 . . . . 10 . . 29 50 100 74 27 Level 5 3 | . . . . . . 20 . 34 . 23 1 . . . . . . . . . . 25 6 High Security 4 | . 2 . . . . . . . . . 8 . . . . . . . . 11 . . 9 Max Security . | . . . . . . . . . . . . . . . . . . . . . . . . Sterilizations 4 | . . . . . 1 . 1 . . . 1 . . . . . . . . 1 . . . Squads Dispatched 219 | . 16 . . . 12 . 17 . 3 . 37 . . . 1 18 . 13 . 54 14 . 34 Investigation 16 | . 8 . . . . . 3 . . . . . . . 1 2 . 1 . 1 . . . Extermination 39 | . . . . . . . . . 1 . 8 . . . . 3 . 4 . 14 2 . 7 Reinforcement 38 | . . . . . 6 . 4 . 1 . 6 . . . . 8 . 5 . 2 2 . 4 Assault 99 | . 8 . . . 2 . 3 . 1 . 23 . . . . 5 . . . 37 6 . 14 Garrison 27 | . . . . . 4 . 7 . . . . . . . . . . 3 . . 4 . 9 Intercept . | . . . . . . . . . . . . . . . . . . . . . . . . Searches Triggered . | . . . . . . . . . . . . . . . . . . . . . . . . Data Miner Redirects 22 | . . . . . . . . . . . . . . . . 5 . 1 . 10 4 . 2 Construction Impeded 15 | . . . . . 4 . 2 . . . 1 . . . . 2 . 1 . 2 . . 3 Haulers Reinforced 8 | . . . . . . . . . 1 . 2 . . . . 2 . 3 . . . . . Active Scanning Responses . | . . . . . . . . . . . . . . . . . . . . . . . . Cargo Convoy Interrupts 2 | . . . . . . . . . 1 . . . . . . 1 . . . . . . . Stealth | -11 -10 -10 -10 -9 -8 -8 -8 -8 -7 -7 -7 -7 -7 -7 -6 -6 -6 -6 -6 -6 -5 -5 -5 --------- Run | Jun Mat Min Exi Min Mat Gar Mat Gar Fac Gar Fac Low Low Dat Pro Fac Was Fac Gar Fac Fac Gar Fac Distress Signals 20 | . 2 . . . 11 . 3 . . . . . . . . 2 . . . . . . 2 Communications Jammed 72 | . . . . . . . . . 72 . . . . . . . . . . . . . . Distress Signals 68 | . . . . . . . . . 68 . . . . . . . . . . . . . . Times Spotted 1021 | . 55 1 . . 69 29 65 33 30 33 153 16 6 . 17 69 6 45 29 182 26 45 112 Peak Tracking Total 16 | . 10 1 . . 6 4 6 8 6 5 14 7 3 . 7 6 3 5 4 15 4 8 16 Tactical Retreats 12 | . 1 . . . . 1 . . . . 1 . 1 . . . . 3 . 1 1 3 . Traps | -11 -10 -10 -10 -9 -8 -8 -8 -8 -7 -7 -7 -7 -7 -7 -6 -6 -6 -6 -6 -6 -5 -5 -5 ------- Run | Jun Mat Min Exi Min Mat Gar Mat Gar Fac Gar Fac Low Low Dat Pro Fac Was Fac Gar Fac Fac Gar Fac Traps Triggered 31 | . 2 . . . 3 2 1 4 1 1 7 . . . . 4 . . 1 1 1 1 2 Indirectly 2 | . . . . . . . . . . . . . . . . 2 . . . . . . . Trap Hack Attempts . | . . . . . . . . . . . . . . . . . . . . . . . . Triggered . | . . . . . . . . . . . . . . . . . . . . . . . . Disarmed . | . . . . . . . . . . . . . . . . . . . . . . . . Reprogrammed . | . . . . . . . . . . . . . . . . . . . . . . . . Reused . | . . . . . . . . . . . . . . . . . . . . . . . . Traps Extracted . | . . . . . . . . . . . . . . . . . . . . . . . . Installed . | . . . . . . . . . . . . . . . . . . . . . . . . Triggered 4 | . . . . . . . . . . . . . 2 . . 2 . . . . . . . Machines | -11 -10 -10 -10 -9 -8 -8 -8 -8 -7 -7 -7 -7 -7 -7 -6 -6 -6 -6 -6 -6 -5 -5 -5 ---------- Run | Jun Mat Min Exi Min Mat Gar Mat Gar Fac Gar Fac Low Low Dat Pro Fac Was Fac Gar Fac Fac Gar Fac Machines Disabled 144 | . 24 . . 5 4 7 7 5 1 7 10 . . . . 20 . 5 13 15 4 6 11 Max in Single Turn 5 | . 2 . . 3 1 2 3 1 1 1 1 . . . . 5 . 1 2 1 3 1 4 Garrison Access 5 | . . . . . . . . . . . 3 . . . . 2 . . . . . . . Garrison Relay 23 | . . . . . . 5 . 5 . 4 . . . . . . . . 4 . . 5 . Phase Generator 3 | . . . . . . 1 . . . 1 . . . . . . . . 1 . . . . Machines Repaired 3 | . 3 . . . . . . . . . . . . . . . . . . . . . . Machines Sabotaged . | . . . . . . . . . . . . . . . . . . . . . . . . Overloaded Fab Kills . | . . . . . . . . . . . . . . . . . . . . . . . . Hacking | -11 -10 -10 -10 -9 -8 -8 -8 -8 -7 -7 -7 -7 -7 -7 -6 -6 -6 -6 -6 -6 -5 -5 -5 --------- Run | Jun Mat Min Exi Min Mat Gar Mat Gar Fac Gar Fac Low Low Dat Pro Fac Was Fac Gar Fac Fac Gar Fac Machines Accessed 95 | . 9 . 2 1 5 3 9 2 5 1 14 2 . 4 1 20 . 6 1 1 3 2 4 Terminals 46 | . 7 . . 1 2 3 5 2 2 1 6 . . . 1 8 . 1 1 . 1 2 3 Fabricators 10 | . . . . . . . . . 2 . 2 . . . . 2 . 3 . 1 . . . Repair Stations 12 | . . . . . 2 . 2 . . . 2 . . . . 5 . . . . 1 . . Recycling Units 7 | . 2 . . . . . 1 . . . 1 . . . . 3 . . . . . . . Scanalyzers 1 | . . . . . . . . . . . . . . . . . . 1 . . . . . Garrison Access 11 | . . . . . 1 . 1 . 1 . 3 . . . . 2 . 1 . . 1 . 1 Total Hacks 236 | . 28 . 2 2 13 4 22 5 6 4 39 8 . 31 5 37 . 9 1 3 10 3 4 Successful 140 | . 11 . 2 1 7 3 13 2 1 1 21 8 . 31 5 21 . 7 . 2 2 1 1 Failed 95 | . 16 . . 1 6 1 9 3 5 3 18 . . . . 16 . 2 1 1 8 2 3 Catastrophic 16 | . 1 . . . . . 1 . 1 2 3 . . . . 2 . . . . 2 2 2 Database Lockouts 1 | . 1 . . . . . . . . . . . . . . . . . . . . . . Manual 74 | . 19 . 1 . 3 . 8 . 6 . 12 . . . . 15 . 2 1 2 2 . 3 Terminals 110 | . 24 . . 2 7 4 12 5 3 4 15 . . . 5 14 . 2 1 . 6 3 3 Fabricators 17 | . . . . . . . . . 2 . 3 . . . . 5 . 4 . 3 . . . Repair Stations 43 | . . . . . 5 . 8 . . . 15 . . . . 12 . . . . 3 . . Recycling Units 12 | . 4 . . . . . 1 . . . 3 . . . . 4 . . . . . . . Scanalyzers 2 | . . . . . . . . . . . . . . . . . . 2 . . . . . Garrison Access 11 | . . . . . 1 . 1 . 1 . 3 . . . . 2 . 1 . . 1 . 1 Terminal Hacks 66 | . 2 . 2 1 2 3 3 2 . 1 2 8 . 31 5 1 . 1 . . 1 1 . Record 25 | . . . 1 1 . . . . . . . 7 . 11 5 . . . . . . . . Part Schematic 12 | . 1 . . . . . . . . . . . . 11 . . . . . . . . . Robot Schematic 6 | . . . . . . . . . . . . . . 6 . . . . . . . . . Robot Analysis 1 | . . . . . . . 1 . . . . . . . . . . . . . . . . Prototype ID Bank 3 | . . . . . . . . . . . . . . 3 . . . . . . . . . Open Door 4 | . . . . . . 1 . 1 . 1 . 1 . . . . . . . . . . . Branch Access Points 1 | . . . . . . . . . . . . . . . . 1 . . . . . . . Emergency Access Points 2 | . . . . . . 1 . 1 . . . . . . . . . . . . . . . Unreport Threat 4 | . . . . . 1 . 2 . . . 1 . . . . . . . . . . . . Hauler Manifests 3 | . . . . . 1 . . . . . 1 . . . . . . 1 . . . . . Zone Layout 2 | . 1 . . . . . . . . . . . . . . . . . . . 1 . . Patrol Navigation 1 | . . . . . . 1 . . . . . . . . . . . . . . . . . Security Stations 1 | . . . . . . . . . . . . . . . . . . . . . . 1 . EX-Prototype ID Bank 1 | . . . 1 . . . . . . . . . . . . . . . . . . . . Fabricator Hacks 6 | . . . . . . . . . . . 1 . . . . 2 . 2 . 1 . . . Load Schematic 4 | . . . . . . . . . . . 1 . . . . 1 . 1 . 1 . . . Build 2 | . . . . . . . . . . . . . . . . 1 . 1 . . . . . Repair Station Hacks 31 | . . . . . 3 . 6 . . . 13 . . . . 9 . . . . . . . Scan Component 17 | . . . . . 2 . 3 . . . 7 . . . . 5 . . . . . . . Repair 14 | . . . . . 1 . 3 . . . 6 . . . . 4 . . . . . . . Recycling Unit Hacks 1 | . 1 . . . . . . . . . . . . . . . . . . . . . . Retrieve Matter 1 | . 1 . . . . . . . . . . . . . . . . . . . . . . Scanalyzer 1 | . . . . . . . . . . . . . . . . . . 1 . . . . . Insert Component 1 | . . . . . . . . . . . . . . . . . . 1 . . . . . Garrison Access Hacks 11 | . . . . . 1 . 1 . 1 . 3 . . . . 2 . 1 . . 1 . 1 Unlock Access 6 | . . . . . 1 . 1 . 1 . . . . . . . . 1 . . 1 . 1 Seal Access 5 | . . . . . . . . . . . 3 . . . . 2 . . . . . . . Unauthorized Hacks 24 | . 8 . . . 1 . 3 . . . 2 . . . . 7 . 2 . 1 . . . Terminals 13 | . 5 . . . 1 . 2 . . . 1 . . . . 4 . . . . . . . Track 1 | . . . . . . . . . . . . . . . . 1 . . . . . . . Botnet 7 | . . . . . 1 . 2 . . . 1 . . . . 3 . . . . . . . Sabotage 5 | . 5 . . . . . . . . . . . . . . . . . . . . . . Fabricators 4 | . . . . . . . . . . . 1 . . . . . . 2 . 1 . . . Liberate 2 | . . . . . . . . . . . 1 . . . . . . 1 . . . . . Recompile 2 | . . . . . . . . . . . . . . . . . . 1 . 1 . . . Repair Stations . | . . . . . . . . . . . . . . . . . . . . . . . . Recycling Units 7 | . 3 . . . . . 1 . . . . . . . . 3 . . . . . . . Reject 4 | . 1 . . . . . . . . . . . . . . 3 . . . . . . . Tunnel 3 | . 2 . . . . . 1 . . . . . . . . . . . . . . . . Scanalyzers . | . . . . . . . . . . . . . . . . . . . . . . . . Garrison Access . | . . . . . . . . . . . . . . . . . . . . . . . . Data Cores Recovered . | . . . . . . . . . . . . . . . . . . . . . . . . Used . | . . . . . . . . . . . . . . . . . . . . . . . . Hacking Detections 64 | . 7 . . . 3 3 7 1 4 . 10 . . . 1 16 . 3 1 1 2 2 3 Full Trace Events 7 | . 2 . . . . . 1 . . . . . . . 1 2 . . . . . 1 . Feedback Events 1 | . . . . . . . . . . . . . . . . 1 . . . . . . . Corruption 1 | . . . . . . . . . . . . . . . . 1 . . . . . . . Feedback Blocked . | . . . . . . . . . . . . . . . . . . . . . . . . Robot Schematics Acquired 6 | . . . . . . . . . . . . . . 6 . . . . . . . . . Robots Built 2 | . . . . . . . . . . . . . . . . 1 . 1 . . . . . Authchips 1 | . . . . . . . . . . . . . . . . . . 1 . . . . . Time 154 | . . . . . . . . . . . . . . . . 116 . 38 . . . . . Total Robot Build Rating 6 | . . . . . . . . . . . . . . . . 3 . 3 . . . . . Part Schematics Acquired 12 | . 1 . . . . . . . . . . . . 11 . . . . . . . . . Parts Built . | . . . . . . . . . . . . . . . . . . . . . . . . Authchips . | . . . . . . . . . . . . . . . . . . . . . . . . Time . | . . . . . . . . . . . . . . . . . . . . . . . . Total Part Build Rating . | . . . . . . . . . . . . . . . . . . . . . . . . Parts Repaired 14 | . . . . . 1 . 3 . . . 6 . . . . 4 . . . . . . . Time 575 | . . . . . 32 . 130 . . . 258 . . . . 155 . . . . . . . Parts Recycled . | . . . . . . . . . . . . . . . . . . . . . . . . Recycled Matter . | . . . . . . . . . . . . . . . . . . . . . . . . Retrieved Matter . | . . . . . . . . . . . . . . . . . . . . . . . . Retrieved Components . | . . . . . . . . . . . . . . . . . . . . . . . . Parts Scanalyzed 1 | . . . . . . . . . . . . . . . . . . 1 . . . . . Part Schematics Acquired . | . . . . . . . . . . . . . . . . . . . . . . . . Parts Damaged . | . . . . . . . . . . . . . . . . . . . . . . . . Bothacking | -11 -10 -10 -10 -9 -8 -8 -8 -8 -7 -7 -7 -7 -7 -7 -6 -6 -6 -6 -6 -6 -5 -5 -5 ------------ Run | Jun Mat Min Exi Min Mat Gar Mat Gar Fac Gar Fac Low Low Dat Pro Fac Was Fac Gar Fac Fac Gar Fac Used RIF Installer 5 | . . . . . . 2 . 1 . 1 . . . . . . . . 1 . . . . Coupler Efficiency 1 | . . . . . . . . . . . . . . . . . . . 1 . . . . Threat Obfuscator 1 | . . . . . . . . . . 1 . . . . . . . . . . . . . Signal Jammer 1 | . . . . . . . . 1 . . . . . . . . . . . . . . . Patrol Navigation 1 | . . . . . . 1 . . . . . . . . . . . . . . . . . Robots Hacked 96 | . . . . . . . 8 9 19 . 16 . . . . 6 5 2 7 1 1 13 9 Non-combat 32 | . . . . . . . 4 . 9 . 9 . . . . 5 . 2 . . 1 . 2 Combat 64 | . . . . . . . 4 9 10 . 7 . . . . 1 5 . 7 1 . 13 7 Robot Hacks Applied 111 | . . . . . . . 13 11 19 . 16 . . . . 8 7 3 7 1 1 15 10 parse_system 8 | . . . . . . . . 1 . . 1 . . . . 1 1 . . . . 3 1 no_distress 1 | . . . . . . . . . . . 1 . . . . . . . . . . . . find_chute 2 | . . . . . . . . . . . . . . . . 1 . . . . 1 . . ignore_repairs 15 | . . . . . . . . . . . 7 . . . . 5 . 3 . . . . . find_fabricator 1 | . . . . . . . . . . . . . . . . . . . . . . . 1 drop_inventory 1 | . . . . . . . . . 1 . . . . . . . . . . . . . . locate_stockpiles 1 | . . . . . . . 1 . . . . . . . . . . . . . . . . ignore_parts 6 | . . . . . . . . . 6 . . . . . . . . . . . . . . purge_threat 2 | . . . . . . . 2 . . . . . . . . . . . . . . . . disarm_traps 1 | . . . . . . . 1 . . . . . . . . . . . . . . . . map_route 1 | . . . . . . . 1 . . . . . . . . . . . . . . . . ignore_targets 6 | . . . . . . . . . . . . . . . . . 6 . . . . . . find_garrison 3 | . . . . . . . 1 . 1 . . . . . . . . . . . . . 1 disable_weapons 3 | . . . . . . . . 2 . . . . . . . . . . 1 . . . . reboot_system 1 | . . . . . . . . 1 . . . . . . . . . . . . . . . overwrite_iff 11 | . . . . . . . . . 4 . . . . . . . . . . . . 6 1 formatsys_low 5 | . . . . . . . 3 . 1 . . . . . . . . . . . . . 1 formatsys_high 42 | . . . . . . . 4 7 5 . 7 . . . . 1 . . 6 1 . 6 5 formatsys_deep 1 | . . . . . . . . . 1 . . . . . . . . . . . . . . Relay Couplers Released 102 | . . . . . . 23 . 20 . 20 . . . . . . . . 20 . . 19 . Machine Destruction 96 | . . . . . . 23 . 20 . 17 . . . . . . . . 17 . . 19 . Programmers 6 | . . . . . . . . . . 3 . . . . . . . . 3 . . . . Attached 46 | . . . . . . 1 5 7 7 . 5 . . . . 1 1 . 6 1 . 8 4 Fabnet Peak Effective % . | . . . . . . . . . . . . . . . . . . . . . . . . Robots Rewired 9 | . . . . . . . . 2 . 3 . 2 . . . . . . . . . 2 . Allies Hacked 5 | . . . . . . . . 1 . . . . . . . . . . 1 . . . 3 Hacks Repelled . | . . . . . . . . . . . . . . . . . . . . . . . . Allies | -11 -10 -10 -10 -9 -8 -8 -8 -8 -7 -7 -7 -7 -7 -7 -6 -6 -6 -6 -6 -6 -5 -5 -5 -------- Run | Jun Mat Min Exi Min Mat Gar Mat Gar Fac Gar Fac Low Low Dat Pro Fac Was Fac Gar Fac Fac Gar Fac Total Allies 91 | . . 1 . . . 1 7 9 14 3 12 2 . . 1 2 1 4 10 1 . 16 7 Largest Group 9 | . . 1 . . . 1 3 6 9 7 4 2 2 . 1 1 2 3 7 6 . 5 5 Highest-Rated Group 360 | . . 31 . . . 20 41 138 271 248 69 48 48 . 96 32 54 87 360 317 . 205 150 Highest-Rated Ally 110 | . . 31 . . . 20 26 39 110 93 39 32 32 . 96 32 31 29 95 95 . 80 51 Total Orders 163 | . . . . 2 1 . 8 . 17 3 5 . . . . 18 7 49 12 13 . . 28 STAY 71 | . . . . . . . 4 . 8 1 3 . . . . 13 2 15 7 1 . . 17 FOLLOW 14 | . . . . . . . . . . . 2 . . . . 3 1 4 4 . . . . GUARD 4 | . . . . . . . 2 . 1 . . . . . . . . . 1 . . . . AID 31 | . . . . . . . . . 7 2 . . . . . 2 3 6 . . . . 11 DROP 3 | . . . . . . . 2 . 1 . . . . . . . . . . . . . . EXPLORE 21 | . . . . 1 1 . . . . . . . . . . . . 12 . 7 . . . RETURN 19 | . . . . 1 . . . . . . . . . . . . 1 12 . 5 . . . Ally Attacks 768 | . . . . . . 3 28 79 115 66 53 . 14 . 9 10 71 22 68 57 . 55 118 Total Damage 16670 | . . . . . . 90 408 1340 2493 1037 709 . 237 . 187 366 1351 324 1860 2678 . 1489 2101 Kills 127 | . . . . . . . 7 14 18 16 7 . 2 . 1 3 3 2 13 16 . 13 12 Allies Corrupted 4 | . . 1 . . . . . . . . 1 . . . . . 2 . . . . . . Allies Melted 5 | . . . . . . . . 1 . 1 . . . . 1 . . . . . . . 2 Intel | -11 -10 -10 -10 -9 -8 -8 -8 -8 -7 -7 -7 -7 -7 -7 -6 -6 -6 -6 -6 -6 -5 -5 -5 ------- Run | Jun Mat Min Exi Min Mat Gar Mat Gar Fac Gar Fac Low Low Dat Pro Fac Was Fac Gar Fac Fac Gar Fac Robot Analysis Total 1 | . . . . . . . 1 . . . . . . . . . . . . . . . . Derelict Logs Recovered 2 | . . . . . . . . . . . . . . . 2 . . . . . . . . Drone Launches 20 | . . . . 1 1 . . . . . . . . . . . 2 11 . 5 . . . Drone Recoveries 19 | . . . . 1 1 . . . . . . . . . . . 2 11 . 4 . . . Exploration | -11 -10 -10 -10 -9 -8 -8 -8 -8 -7 -7 -7 -7 -7 -7 -6 -6 -6 -6 -6 -6 -5 -5 -5 ------------- Run | Jun Mat Min Exi Min Mat Gar Mat Gar Fac Gar Fac Low Low Dat Pro Fac Was Fac Gar Fac Fac Gar Fac Turns Passed 57239 | 248 8361 140 611 143 2524 1458 3991 1304 1140 912 7583 1603 1494 237 3384 3573 357 2370 1367 7750 1544 1713 3432 Spaces Moved 19189 | 50 1609 72 379 63 801 625 1022 598 552 471 2977 827 569 95 1269 1356 155 1033 682 1104 705 746 1429 Core 58 | . . . . . . . . . . . . . . . . . . . . 18 24 . 16 Treads 18271 | 50 1609 72 379 63 801 625 1022 598 552 471 2977 827 569 95 1269 1356 155 1033 682 1083 5 565 1413 Legs 833 | . . . . . . . . . . . . . . . . . . . . . 652 181 . Wheels 3 | . . . . . . . . . . . . . . . . . . . . 3 . . . Hover 9 | . . . . . . . . . . . . . . . . . . . . . 9 . . Flight 15 | . . . . . . . . . . . . . . . . . . . . . 15 . . Fastest Speed 45 | 160 160 160 160 160 160 170 157 157 158 158 155 158 166 246 246 164 163 162 165 50 45 120 50 Average Speed 169 | 160 160 160 160 160 162 170 161 157 158 158 156 162 245 246 246 165 164 164 165 154 149 165 160 Slowest Speed 250 | 160 240 160 160 160 170 170 170 237 163 158 160 166 246 246 246 166 167 240 165 243 245 250 165 Overloaded Moves . | . . . . . . . . . . . . . . . . . . . . . . . . Propulsion Burnouts . | . . . . . . . . . . . . . . . . . . . . . . . . Robots Hopped . | . . . . . . . . . . . . . . . . . . . . . . . . Cave-ins Triggered . | . . . . . . . . . . . . . . . . . . . . . . . . Exploration Rate (%) 57 | 3 98 13 70 94 77 83 55 81 19 74 57 81 56 69 97 45 78 34 71 18 14 72 27 Regions Visited 23 Branch Regions 7 Pre-discovered Areas 6 | . 2 1 1 . . . 1 . . . . . . 1 . . . . . . . . . Known Exits Taken 7 | . . . . . 1 . 1 . 1 . 1 . . . . . . 1 . 1 1 . . Unknown Exits Taken 9 | 1 1 1 1 1 . . . . . . . 1 1 1 1 . . . . . . . . Scrap Searched 5 | . . . . . . . . . . . . 3 . . 2 . . . . . . . . Spaces Dug 259 | . 44 . . . 10 4 33 16 . 4 30 8 . . 27 43 . 24 2 1 6 . 7 Terrain Destroyed 3446 | . 344 10 . 2 191 81 171 35 52 331 336 29 6 . 136 444 2 93 240 566 49 9 319 Melee 66 | . 2 . . . 7 . 1 . . . 21 . . . 2 16 . 8 . 1 3 . 5 Projectile 86 | . 3 . . . 1 . 1 . . 4 16 2 6 . 4 14 2 3 . . 15 6 9 AOE 3290 | . 339 10 . 2 183 81 169 35 52 327 299 27 . . 130 414 . 82 240 565 30 . 305 Terrain Rammed . | . . . . . . . . . . . . . . . . . . . . . . . . Walls Destroyed . | . . . . . . . . . . . . . . . . . . . . . . . . Machines Disabled . | . . . . . . . . . . . . . . . . . . . . . . . . Actions | -11 -10 -10 -10 -9 -8 -8 -8 -8 -7 -7 -7 -7 -7 -7 -6 -6 -6 -6 -6 -6 -5 -5 -5 --------- Run | Jun Mat Min Exi Min Mat Gar Mat Gar Fac Gar Fac Low Low Dat Pro Fac Was Fac Gar Fac Fac Gar Fac Total 40427 | 175 7203 83 386 91 1714 886 3127 849 746 585 5392 1021 640 98 1429 2369 218 1485 840 6756 1020 1075 2239 Wait 17151 | 93 5395 . . 18 626 105 1838 55 52 24 1910 135 16 . 91 664 15 180 41 5223 154 101 415 Move 19167 | 49 1608 71 378 62 800 624 1021 597 551 470 2976 826 568 94 1268 1356 154 1032 681 1103 704 745 1429 Hop . | . . . . . . . . . . . . . . . . . . . . . . . . Pick Up 486 | 4 18 1 3 . 56 25 28 35 20 14 62 9 21 . 4 25 . 33 9 38 18 34 29 Fast Attach 196 | . 6 . . . 6 3 3 3 8 . 17 1 6 . . 22 6 10 6 24 24 20 31 Attach 166 | 2 2 . . . 5 1 8 9 10 1 10 1 1 1 . 10 1 31 5 24 8 19 17 Detach 61 | . . . . . 4 . 3 3 9 2 10 . 1 . . 3 3 6 . 5 4 4 4 Swap 730 | 1 26 3 . 4 52 19 72 28 23 5 102 15 4 3 13 88 4 47 28 100 22 12 59 Drop 385 | 2 15 1 5 . 17 18 9 16 9 10 35 . 11 . 3 36 10 34 13 47 11 27 56 Fire 1732 | 24 106 1 . 7 137 71 140 103 61 59 186 32 11 . 48 127 25 96 55 140 47 108 148 Melee 304 | . 24 6 . . 8 16 1 . . . 80 . 1 . 2 36 . 9 . 44 25 3 49 Ram 3 | . . . . . . . . . . . . . . . . . . . . 1 . . 2 Kick 1 | . . . . . . . . . . . . . . . . . . . . . 1 . . Crush 33 | . 3 . . . 3 . 4 . 1 . 4 . . . . 2 . 7 . 7 2 . . Escape Stasis 8 | . . . . . . 4 . . . . . . . . . . . . 2 . . 2 . Rewire 4 | . . . . . . . . . 2 . . 2 . . . . . . . . . . . Trap . | . . . . . . . . . . . . . . . . . . . . . . . . Miscellaneous . | . . . . . . . . . . . . . . . . . . . . . . . . Route ------- -11/Junkyard -10/Materials (discovered 5 exits: [*Mat x3] / [*Min x2]) -10/Mines -10/Exiles -9/Mines (discovered 2 exits: *Mat x2) -8/Materials (discovered 4 exits: *Fac x3 / Gar) -8/Garrison (discovered 3 exits: *Mat x3) -8/Materials (discovered 3 exits: *Fac / [*Sto] / Gar) -8/Garrison (discovered 3 exits: *Fac x3) -7/Factory -7/Garrison (discovered 3 exits: *Fac x3) -7/Factory (discovered 3 exits: *Fac / *Low x2) -7/Lower Caves -7/Lower Caves (discovered 2 exits: *Fac / *Dat) -7/Data Miner -6/Proximity Caves -6/Factory (discovered 3 exits: *Fac / Low x2) -6/Waste -6/Factory (discovered 2 exits: *Low / Gar) -6/Garrison (discovered 3 exits: *Fac x3) -6/Factory -5/Factory (discovered 2 exits: [*Fac] / Gar) -5/Garrison (discovered 3 exits: *Fac x3) -5/Factory (discovered 1 exit: Gar) History --------- Turn | Location | Event 23 | -11/Junkyard | Discovered new exit (range 3) 249 | -11/Junkyard | Entered Materials 321 | -10/Materials | Build established: Mutant 5295 | -10/Materials | Discovered new exit (range 16) 5478 | -10/Materials | Discovered new exit (range 11) 6415 | -10/Materials | Central database locked down 6962 | -10/Materials | Discovered new exit (range 10) 7589 | -10/Materials | Discovered new exit (range 15) 7803 | -10/Materials | Discovered new exit (range 15) 8391 | -10/Materials | High security lockdown imminent 8471 | -10/Materials | High security lockdown engaged 8533 | -10/Materials | Core integrity fell below 50% 8561 | -10/Materials | Destroyed 15 combat bots 8610 | -10/Materials | Entered Mines 8615 | -10/Mines | Escorted by a lone wolf Derelict 8635 | -10/Mines | Learned location of Storage (-8) 8673 | -10/Mines | Excavation squad dispatched 8673 | -10/Mines | A large section of the Mines collapsed 8743 | -10/Mines | Met a Derelict bent on vengeance 8744 | -10/Mines | Deemed a non-threat by the Exiles lab entrance 8744 | -10/Mines | Discovered new exit (range 5) 8750 | -10/Mines | Entered Exiles 8789 | -10/Exiles | Met 8R-AWN 8822 | -10/Exiles | Met EX-HEX 8872 | -10/Exiles | Met EX-BIN 8894 | -10/Exiles | Aligned with FarCom system 8896 | -10/Exiles | Given EX-Vault access code 8944 | -10/Exiles | Opened EX-Vault 8953 | -10/Exiles | Found Field Lobotomy Kit 8960 | -10/Exiles | Found Supersonic Drone Bay 8969 | -10/Exiles | Found Lightpack 2.0 9002 | -10/Exiles | Warned to stay clear of 0b10 Research branches 9055 | -10/Exiles | Met EX-DEC 9068 | -10/Exiles | Learned location of Zion (-6) 9345 | -10/Exiles | Discovered new exit (range 11) 9361 | -10/Exiles | Stole three prototypes: Lightpack 2.0, Supersonic Drone Bay, Field Lobotomy Kit 9361 | -10/Exiles | Entered Mines 9365 | -9/Mines | Discovered new exit (range 19) 9367 | -9/Mines | Discovered new exit (range 51) 9504 | -9/Mines | Entered Materials 9504 | -8/Materials | Evolved 4 slots: Utility x2, Weapon x2 9526 | -8/Materials | Discovered new exit (range 43) 9529 | -8/Materials | Discovered new exit (range 75) 9533 | -8/Materials | Discovered new exit (range 49) 9618 | -8/Materials | Identified exit to Garrison 10255 | -8/Materials | Build established: Hauler-Skirmisher 11353 | -8/Materials | Repaired Hvy. Assault Rifle 11504 | -8/Materials | First assault squad dispatched 11523 | -8/Materials | Garrison activated, responded to threat 11559 | -8/Materials | Destroyed 7 combat bots 11625 | -8/Materials | Garrison activated, responded to threat 11884 | -8/Materials | Garrison activated, responded to threat 12012 | -8/Materials | Sterilization system engaged 12012 | -8/Materials | Non-combat units ordered to evacuate 12028 | -8/Materials | Entered Garrison 12044 | -8/Garrison | Installed Relay Interface Framework 12088 | -8/Garrison | Triggered checkpoint 12178 | -8/Garrison | Garrison Relay disabled 12252 | -8/Garrison | Triggered checkpoint 12288 | -8/Garrison | Discovered new exit (range 12) 12484 | -8/Garrison | Garrison Relay disabled 12549 | -8/Garrison | Garrison Relay disabled 12650 | -8/Garrison | Triggered checkpoint 12787 | -8/Garrison | Discovered new exit (range 5) 12850 | -8/Garrison | Triggered checkpoint 12929 | -8/Garrison | Garrison Relay disabled 13034 | -8/Garrison | Triggered checkpoint 13142 | -8/Garrison | Rescued a captive Derelict 13205 | -8/Garrison | Garrison Relay disabled 13297 | -8/Garrison | Discovered new exit (range 10) 13378 | -8/Garrison | Expanded RIF knowledge: Patrol Navigation 13402 | -8/Garrison | Phase Generator disabled 13486 | -8/Garrison | Entered Materials 13886 | -8/Materials | First assault squad dispatched 13948 | -8/Materials | Build established: Bothacker-Skirmisher 14043 | -8/Materials | Core integrity fell below 50% 14098 | -8/Materials | Discovered new exit (range 9) 14153 | -8/Materials | Repaired Arm. Treads 14333 | -8/Materials | Build established: Hauler-Skirmisher 14353 | -8/Materials | Identified exit to Garrison 14426 | -8/Materials | Repaired Rocket Launcher 14435 | -8/Materials | Garrison activated, responded to threat 14443 | -8/Materials | Discovered new exit (range 10) 14718 | -8/Materials | Repaired Enh. Autogun 15612 | -8/Materials | Garrison activated, responded to threat 15799 | -8/Materials | Garrison activated, responded to threat 16323 | -8/Materials | Garrison activated, responded to threat 16464 | -8/Materials | Garrison activated, responded to threat 16573 | -8/Materials | Garrison activated, responded to threat 17051 | -8/Materials | Garrison activated, responded to threat 17385 | -8/Materials | Build established: Hauler-Mutant 17466 | -8/Materials | Sterilization system engaged 17466 | -8/Materials | Non-combat units ordered to evacuate 17477 | -8/Materials | Entered Garrison 17477 | -8/Garrison | Accompanied by 2 allies 17498 | -8/Garrison | Triggered checkpoint 17568 | -8/Garrison | Garrison Relay disabled 17684 | -8/Garrison | Triggered checkpoint 17704 | -8/Garrison | Triggered checkpoint 17737 | -8/Garrison | Spotted B-75 Beast 17841 | -8/Garrison | Destroyed B-75 Beast 17953 | -8/Garrison | Discovered new exit (range 11) 18012 | -8/Garrison | Triggered checkpoint 18057 | -8/Garrison | Garrison Relay disabled 18114 | -8/Garrison | Garrison Relay disabled 18198 | -8/Garrison | Triggered checkpoint 18270 | -8/Garrison | Discovered new exit (range 10) 18306 | -8/Garrison | Triggered checkpoint 18387 | -8/Garrison | Expanded RIF knowledge: Signal Jamming 18408 | -8/Garrison | Build established: Bothacker-Mutant 18455 | -8/Garrison | Triggered checkpoint 18574 | -8/Garrison | Discovered new exit (range 10) 18592 | -8/Garrison | Triggered checkpoint 18657 | -8/Garrison | Garrison Relay disabled 18781 | -8/Garrison | Entered Factory 18781 | -7/Factory | Accompanied by 3 allies 18781 | -7/Factory | Evolved 2 slots: Propulsion x1, Utility x1 18783 | -7/Factory | FarCom data flow suspended 19028 | -7/Factory | Identified exit to Garrison 19581 | -7/Factory | First assault squad dispatched 19711 | -7/Factory | Assimilated ARC 4a with formatsys_deep 19712 | -7/Factory | Cargo convoy interrupted 19796 | -7/Factory | Found Prototype Processor 19796 | -7/Factory | Identified Exp. Melee Analysis Suite 19921 | -7/Factory | Entered Garrison 19921 | -7/Garrison | Accompanied by 6 allies 19938 | -7/Garrison | Triggered checkpoint 19977 | -7/Garrison | Assembled breached garrison interior 20115 | -7/Garrison | Destroyed 8 combat bots 20214 | -7/Garrison | Discovered new exit (range 14) 20241 | -7/Garrison | Expanded RIF knowledge: Threat Obfuscation 20296 | -7/Garrison | Garrison Relay disabled 20297 | -7/Garrison | Build established: Hauler-Mutant 20406 | -7/Garrison | Destroyed 14 combat bots 20414 | -7/Garrison | Phase Generator disabled 20513 | -7/Garrison | Garrison Relay disabled 20565 | -7/Garrison | Garrison Relay disabled 20596 | -7/Garrison | Discovered new exit (range 13) 20740 | -7/Garrison | Build established: Botlord-Mutant 20749 | -7/Garrison | Garrison Relay disabled 20808 | -7/Garrison | Discovered new exit (range 9) 20833 | -7/Garrison | Entered Factory 20833 | -7/Factory | Accompanied by 1 ally 20941 | -7/Factory | Discovered new exit (range 14) 21397 | -7/Factory | Discovered new exit (range 15) 21465 | -7/Factory | Build established: Botlord-Tank 21520 | -7/Factory | Repaired Corrupted Transport Network Coupler 21569 | -7/Factory | Repaired Adv. Treads 21602 | -7/Factory | Repaired Rocket Launcher 22087 | -7/Factory | Identified exit to Lower Caves 22833 | -7/Factory | First assault squad dispatched 23329 | -7/Factory | Discovered exit to Lower Caves (range 15) 24729 | -7/Factory | Build established: Hauler-Tank 24738 | -7/Factory | Repaired Adv. Treads? 24817 | -7/Factory | Repaired Prc. Assault Rifle 24862 | -7/Factory | Repaired Med. Treads? 25658 | -7/Factory | Build established: Hauler-Mutant 25958 | -7/Factory | Found Prototype Launcher 25962 | -7/Factory | Found Prototype Launcher 26181 | -7/Factory | Identified Rocket Array (x2) 27393 | -7/Factory | Destroyed 8 combat bots 27795 | -7/Factory | High security lockdown imminent 27875 | -7/Factory | High security lockdown engaged 28081 | -7/Factory | Destroyed 19 combat bots 28174 | -7/Factory | Destroyed 18 combat bots 28261 | -7/Factory | Destroyed 7 combat bots 28306 | -7/Factory | Sterilization system engaged 28306 | -7/Factory | Non-combat units ordered to evacuate 28312 | -7/Factory | Destroyed 17 combat bots 28406 | -7/Factory | Combat units ordered to evacuate 28416 | -7/Factory | Entered Lower Caves 28427 | -7/Lower Caves | Encountered a Warlord checkpoint 28723 | -7/Lower Caves | Build established: Hauler-Tank 28896 | -7/Lower Caves | Learned 8 Factory zone layouts 28896 | -7/Lower Caves | Learned Extension security intel 28896 | -7/Lower Caves | Learned Armory garrison access intel 29031 | -7/Lower Caves | Discovered new exit (range 3) 29264 | -7/Lower Caves | Build established: Hauler-Mutant 29379 | -7/Lower Caves | Attracted the attention of an 0b10 outpost 29595 | -7/Lower Caves | Build established: Hauler-Tank 30019 | -7/Lower Caves | Entered another Lower Caves area 30019 | -7/Lower Caves | Accompanied by 2 allies 30019 | -7/Lower Caves | Spotted XD-PA7(f) 30020 | -7/Lower Caves | Encountered a Master Thief 30024 | -7/Lower Caves | Lightpack 2.0 stolen by Master Thief 30169 | -7/Lower Caves | Discovered new exit (range 14) 30441 | -7/Lower Caves | Build established: Gunner 31188 | -7/Lower Caves | Discovered new exit (range 15) 31513 | -7/Lower Caves | Entered Data Miner 31513 | -7/Data Miner | Discovered new exit (range 6) 31560 | -7/Data Miner | Met Data Miner 31622 | -7/Data Miner | Learned location of Section 7 (-2) 31622 | -7/Data Miner | Acquired the access code to Warlord's prototype stash 31664 | -7/Data Miner | Received God Mode back door access code from Data Miner 31750 | -7/Data Miner | Entered Proximity Caves 31752 | -6/Proximity Caves | Attracted the attention of an 0b10 checkpoint 32332 | -6/Proximity Caves | Build established: Mutant 32650 | -6/Proximity Caves | Build established: Gunner 32817 | -6/Proximity Caves | Escorted by Enhanced Grunt 33064 | -6/Proximity Caves | Discovered new exit (range 5) 33150 | -6/Proximity Caves | Spotted B-75 Beast 33180 | -6/Proximity Caves | Destroyed B-75 Beast 33471 | -6/Proximity Caves | Learned Factory stockpile data 33530 | -6/Proximity Caves | Learned 12 Factory zone layouts 33561 | -6/Proximity Caves | Build established: Mutant 33923 | -6/Proximity Caves | Attracted the attention of an 0b10 base 34005 | -6/Proximity Caves | Learned Extension garrison access intel 34005 | -6/Proximity Caves | Learned Factory terminal intel 35134 | -6/Proximity Caves | Entered Factory 35134 | -6/Factory | Evolved 2 slots: Propulsion x2 35135 | -6/Factory | Identified exit to Factory 35135 | -6/Factory | Identified exit to Lower Caves 35137 | -6/Factory | Loaded intel: 24 terminal locations 35301 | -6/Factory | Repaired Arm. Treads 35611 | -6/Factory | Repaired Arm. Treads 35612 | -6/Factory | Incoming investigation squad redirected 35903 | -6/Factory | Build established: Scavenger-Gunner 36210 | -6/Factory | Repaired KE Penetrator 36453 | -6/Factory | Cargo convoy interrupted 36522 | -6/Factory | Repaired Prc. Assault Rifle 36655 | -6/Factory | Build established: Scavenger-Tank 36741 | -6/Factory | Found Prototype Hackware 36941 | -6/Factory | Destroyed 9 combat bots 37234 | -6/Factory | First assault squad dispatched 37253 | -6/Factory | Incoming assault squad redirected 37299 | -6/Factory | Fabricated M-28 Smith (x1) 37517 | -6/Factory | Build established: Scavenger-Mutant 37602 | -6/Factory | Incoming assault squad redirected 38314 | -6/Factory | Incoming assault squad redirected 38650 | -6/Factory | Incoming assault squad redirected 38707 | -6/Factory | Sucked down chute 38707 | -6/Factory | Entered Waste 38708 | -6/Waste | Met a frightened Derelict 38710 | -6/Waste | 1 allies followed down the chute 38720 | -6/Waste | Spotted C-40 Crusher 38722 | -6/Waste | EMP discharged 38722 | -6/Waste | System corruption reached 10% 38725 | -6/Waste | Spotted C-40 Crusher 38727 | -6/Waste | Spotted C-40 Crusher 38739 | -6/Waste | Spotted C-40 Crusher 38743 | -6/Waste | Spotted C-40 Crusher 38779 | -6/Waste | Allies destroyed C-40 Crusher 38812 | -6/Waste | Allies destroyed C-40 Crusher 38822 | -6/Waste | EMP discharged 38874 | -6/Waste | Allies destroyed C-40 Crusher 38895 | -6/Waste | Destroyed C-40 Crusher 38906 | -6/Waste | Found Damper Plating 38911 | -6/Waste | Spotted C-40 Crusher 38921 | -6/Waste | Destroyed C-40 Crusher 38922 | -6/Waste | EMP discharged 39022 | -6/Waste | EMP discharged 39050 | -6/Waste | Discovered new exit (range 10) 39064 | -6/Waste | Entered Factory 39201 | -6/Factory | Discovered exit to Lower Caves (range 16) 40064 | -6/Factory | Garrison activated, responded to threat 40222 | -6/Factory | Identified exit to Garrison 40309 | -6/Factory | Build established: Scavenger-Tank 40373 | -6/Factory | Incoming investigation squad redirected 40417 | -6/Factory | Fabricated M-28 Smith (x1) 40849 | -6/Factory | Core integrity fell below 50% 41434 | -6/Factory | Entered Garrison 41434 | -6/Garrison | Accompanied by 1 ally 41458 | -6/Garrison | Triggered checkpoint 41497 | -6/Garrison | Garrison Relay disabled 41570 | -6/Garrison | Spotted B-75 Beast 41627 | -6/Garrison | Triggered checkpoint 41636 | -6/Garrison | Triggered checkpoint 41647 | -6/Garrison | Destroyed B-75 Beast 41676 | -6/Garrison | Triggered checkpoint 41692 | -6/Garrison | Triggered checkpoint 41786 | -6/Garrison | Garrison Relay disabled 41826 | -6/Garrison | Discovered new exit (range 10) 41896 | -6/Garrison | Triggered checkpoint 41957 | -6/Garrison | Rescued a captive Derelict 41957 | -6/Garrison | Rescued a captive Derelict 42014 | -6/Garrison | Triggered checkpoint 42162 | -6/Garrison | Triggered checkpoint 42174 | -6/Garrison | Garrison Relay disabled 42239 | -6/Garrison | Discovered new exit (range 10) 42402 | -6/Garrison | Phase Generator disabled 42461 | -6/Garrison | Build established: Scavenger-Mutant 42479 | -6/Garrison | Found embedded Infiltrators 42514 | -6/Garrison | Garrison Relay disabled 42525 | -6/Garrison | Triggered checkpoint 42609 | -6/Garrison | Expanded RIF knowledge: Coupler Efficiency 42639 | -6/Garrison | Discovered new exit (range 3) 42801 | -6/Garrison | Entered Factory 42801 | -6/Factory | Accompanied by 5 allies 42850 | -6/Factory | Discovered exit to Factory (range 22) 43151 | -6/Factory | First assault squad dispatched 43246 | -6/Factory | Incoming assault squad redirected 43871 | -6/Factory | Incoming assault squad redirected 44219 | -6/Factory | Incoming assault squad redirected 44800 | -6/Factory | Build established: Mutant 44986 | -6/Factory | System corruption reached 30% 45981 | -6/Factory | Incoming assault squad redirected 47375 | -6/Factory | Incoming assault squad redirected 48108 | -6/Factory | Incoming assault squad redirected 48294 | -6/Factory | Build established: Tank 48428 | -6/Factory | Incoming assault squad redirected 48772 | -6/Factory | Incoming assault squad redirected 48793 | -6/Factory | Build established: Mutant 49127 | -6/Factory | Incoming assault squad redirected 49479 | -6/Factory | Incoming assault squad redirected 49675 | -6/Factory | High security lockdown imminent 49755 | -6/Factory | High security lockdown engaged 49997 | -6/Factory | Destroyed 19 combat bots 50005 | -6/Factory | Build established: Tank 50063 | -6/Factory | Destroyed 14 combat bots 50213 | -6/Factory | Destroyed 8 combat bots 50338 | -6/Factory | Sterilization system engaged 50338 | -6/Factory | Non-combat units ordered to evacuate 50399 | -6/Factory | Destroyed 23 combat bots 50404 | -6/Factory | Lost 9 parts (5n2u2w) 50438 | -6/Factory | Combat units ordered to evacuate 50542 | -6/Factory | Released all parts (10) 50544 | -6/Factory | Core integrity fell below 20% 50551 | -6/Factory | Entered another Factory area 50551 | -5/Factory | Evolved 2 slots: Propulsion x1, Utility x1 50622 | -5/Factory | Build established: Mutant 50660 | -5/Factory | Lost 4 parts (1p2n1u) 50722 | -5/Factory | System corruption reached 10% 50851 | -5/Factory | First assault squad dispatched 50879 | -5/Factory | Incoming assault squad redirected 51245 | -5/Factory | Garrison activated, responded to threat 51247 | -5/Factory | Build established: Scavenger-Tank 51261 | -5/Factory | Discovered new exit (range 14) 51341 | -5/Factory | Identified exit to Garrison 51379 | -5/Factory | Spotted B-75 Beast 51398 | -5/Factory | Garrison activated, responded to threat 51469 | -5/Factory | Incoming assault squad redirected 51774 | -5/Factory | Incoming assault squad redirected 51775 | -5/Factory | Incoming assault squad redirected 52095 | -5/Factory | Entered Garrison 52121 | -5/Garrison | Triggered checkpoint 52173 | -5/Garrison | Garrison Relay disabled 52261 | -5/Garrison | System corruption reached 30% 52304 | -5/Garrison | Destroyed 8 combat bots 52309 | -5/Garrison | Lost 8 parts (1p1n3u3w) 52438 | -5/Garrison | Triggered checkpoint 52486 | -5/Garrison | Lost 3 parts (1u2w) 52544 | -5/Garrison | Lost 7 parts (5n2w) 52752 | -5/Garrison | Learned Factory security intel 52779 | -5/Garrison | Discovered new exit (range 10) 52823 | -5/Garrison | Build established: Scavenger-Mutant 52828 | -5/Garrison | Found embedded Infiltrators 52866 | -5/Garrison | Triggered checkpoint 52916 | -5/Garrison | Garrison Relay disabled 53016 | -5/Garrison | Triggered checkpoint 53120 | -5/Garrison | Discovered new exit (range 10) 53139 | -5/Garrison | Triggered checkpoint 53209 | -5/Garrison | Garrison Relay disabled 53368 | -5/Garrison | Triggered checkpoint 53428 | -5/Garrison | Triggered checkpoint 53540 | -5/Garrison | Triggered checkpoint 53575 | -5/Garrison | Garrison Relay disabled 53640 | -5/Garrison | Garrison Relay disabled 53673 | -5/Garrison | Discovered new exit (range 10) 53808 | -5/Garrison | Entered Factory 53808 | -5/Factory | Accompanied by 4 allies 54166 | -5/Factory | Build established: Scavenger-Tank 54858 | -5/Factory | Build established: Scavenger-Mutant 55016 | -5/Factory | Identified exit to Garrison 55156 | -5/Factory | Garrison activated, responded to threat 55308 | -5/Factory | First assault squad dispatched 55625 | -5/Factory | Incoming assault squad redirected 55672 | -5/Factory | Found Prototype Launcher 55673 | -5/Factory | Identified Mni. Smartbomb Launcher 55682 | -5/Factory | Found Mni. Smartbomb Launcher 55730 | -5/Factory | Garrison activated, responded to threat 55923 | -5/Factory | Incoming assault squad redirected 56901 | -5/Factory | Garrison activated, responded to threat 56912 | -5/Factory | High security lockdown imminent 56992 | -5/Factory | High security lockdown engaged 57157 | -5/Factory | Destroyed 10 combat bots 57160 | -5/Factory | Core integrity fell below 50% 57214 | -5/Factory | Destroyed 10 combat bots 57232 | -5/Factory | Released all parts (7) 57240 | -5/Factory | Core integrity fell below 20% 57240 | -5/Factory | Destroyed by D-63 Destroyer with Heavy Rocket Launcher Last Messages --------------- 57226_ System corrupted: Energy discharge (-145). 57226_ M-28 Smith destroyed. 57226_ G-50 Soldier destroyed. 57226_ Slug penetrates G-67 Veteran. 57226_ Penetrated by Slug. 57226_ KE Penetrator destroyed. 57227_ Med. Treads destroyed. 57232_ Released Mni. Smartbomb Launcher. 57232_ Released Hcp. Storage Unit. 57232_ Released Adv. Cooling System. 57232_ Released Hvy. Treads. 57232_ Released Arm. Medium Treads. 57232_ Released F-cell Engine. 57232_ Released Gauss Rifle. 57236_ Slug penetrates Construction Platform. 57237_ Penetrated by Slug. 57240_ Slammed into Y-64 Sentinel. 57240_ Critical hit (Burn: +37). 57240_ Penetrated by Slug. 57240_ P-80 Master suffers critical hit (Destroy). Map ----- +----------------------------------------------------+ | ?????????????????????????????????????????????????? | | ?????????????????????????????????????????????????? | | ?????????????????????????????????????????????????? | | ?????????????????????????????????????????????????? | | ?????????????????????????????????????????????????? | | ?????????????????????????????????????????????????? | | ?????????????????????????????????????????????????? | | ?????????????????????????????????????????????????? | | ??????????????????????????????????+##????????????? | | ##########??????????????????????? ?????????????? | | #???????????????????????" ?????????????? | | " " #???????????????????????"T ?????????????? | | " " #??????????????????????? ?????????????? | | " " ! #??????????????????????? ?????????????? | | " " #???????????????????????# #########?????? | | " " #???????????????????????# # ? ??????? | | " " #???????????????????????# # ??????? | | " " ! #???????????????????????# # ? ???????? | | " " #????????################ # ? ???????? | | " " #????????# ##+##+#??###### | | #????????+ ^ #### | | #????????# ^ ** # | | ###+############### g =![= | | """"""" =]]!| | | """"" !/! == | | ""Y@p "" " [!= | | "G> Y " | | ! !! ""YY %* " | | = ! % " | | !*= %%= ! | | ###+########## ### # = | | #??# # ] * # ! | | #?## + # | | """" """" #### ########### *d # | | """" """" #### # ##?????# | | """" """" / # #?????# | | """" """" #### # #?????# | | # # =## ##?????# !# % | | """" """" ## # # #?????# ! # # | | """" """" # # # #?????# = ! # # | | """" """" # # # ##?????########## + """ | | "?"" """" # ## # #??????????????## # """ | | # # # #??????????????# # | | #??######## # #?##??????????????#T ####### | | ??????????#### #?????????????????## #?????# | | ????????????## #??????????????????# #?????# | | ?????????????# #??????????????????# ####### | | ?????????????# #??????????????????# | | ?????????????# ######?????????????# | | ?????????????# ## !############### | +----------------------------------------------------+ Best States ------------- Heat Dissipation 78 Energy Generation 25 Energy Capacity 500 Matter Stores 300 Matter Capacity 450 Sight Range 22 Robot Scan Range 15 Terrain Scan Range 16 Terrain Scan Density 10 Jamming Range 14 EM Shielding 2 Armor Coverage 1600 Resistance: KI 20 Resistance: TH 25 Resistance: EM 90 Core Shielding 30 Power Shielding 90 Propulsion Shielding 66 Phase Shifting 5 Evasion (%) 61 Targeting Accuracy 8 Melee Accuracy 5 Target Analysis 6 Recoil Reduction 12 Kinecelleration 40 Offensive Hacking 12 Defensive Hacking 14 Relay Coupler Types 2 Relay Coupler Value 55 Authchip Count 1 Item Schematics ----------------- Huge Storage Unit | -10/Materials | Hacked Combat Drone Bay | -7/Data Miner | Free Lgt. Regenerative Plating | -7/Data Miner | Free Cld. Aerolev Unit | -7/Data Miner | Free Exp. Utility Shielding | -7/Data Miner | Free Antimatter Cannon | -7/Data Miner | Free Nuclear Pulse Array | -7/Data Miner | Free Imp. Coolant Injector | -7/Data Miner | Free Enh. Gauss Cannon | -7/Data Miner | Free EM Disruption Field | -7/Data Miner | Free Imp. Remote Datajack | -7/Data Miner | Free Smartbomb Launcher | -7/Data Miner | Free Robot Schematics ------------------ A-15 Conveyor | -7/Data Miner | Free H-55 Commando | -7/Data Miner | Free R-10 Processor | -7/Data Miner | Free M-28 Smith | -7/Data Miner | Free G-50 Soldier | -7/Data Miner | Free L-41 Fighter | -7/Data Miner | Free Fabricated ------------ M-28 Smith | x1 | -6/Factory M-28 Smith | x1 | -6/Factory | Authchip Alien Tech Used ----------------- None Achievements -------------- None Challenges ------------ None Game ------ Seed LauncherNuclearDoomcannon Manual? 0 Play Time 12:33:41 Cumulative 410.7 hours Start 2023.03.08 @ 23:55:20 End 2023.03.25 @ 14:16:04 Sessions 19 Manual Loads 0 Difficulty Rogue Special Mode None Game No. 181 Rogue 181 Adventurer 0 Explorer 0 Win Type - Total 8 Types 4/1/0/1/2/0/0/0/0 Lore% 67 Gallery% 80 Achievement% 71 Wizard Run 0 Options --------- ASCII 0 Keyboard 0 Movement Mouse Keybinds 0 Fullscreen 0 Font 28/SmallcapsGlow Map View 72x54 Tactical HUD 1 Map Filters NONE Filters NONE Steam 1 RUN: 674341cb-6c9f-42c7-82c3-a3a0a080aa0c